[Event "GER-ch Youth-ODJM 2022 A"]
[Site "Willingen"]
[Date "2022.06.08"]
[Round "5.22"]
[White "Paeslack, Luis"]
[Black "Schwartz, Oliver"]
[Result "1/2-1/2"]
[ECO "D38"]
[WhiteElo "1889"]
[BlackElo "1753"]
[Annotator "NA RC COMBH"]
[PlyCount "41"]
[EventDate "2022.06.05"]
[EventType "swiss"]
[EventRounds "9"]
[EventCountry "GER"]
[SourceTitle "playchess.com"]
[Source "ChessBase"]
[SourceQuality "1"]
[TimeControl "40/4500+30:900+30"]

1. d4 {[%emt 0:00:00]} Nf6 {[%emt 0:00:00]} 2. c4 {[%emt 0:00:00]} e6 {[%emt 0:00:00]} 3. Nf3 {[%emt 0:00:00]} d5 {[%emt 0:00:00]} 4. Nc3 {[%emt 0:00:00]} Bb4 {[%emt 0:00:00]} 5. Qa4+ {[%emt 0:00:00]} Nc6 {[%emt 0:00:00]} 6. e3 {[%emt 0:00:00]} O-O {[%emt 0:00:00]} 7. Qc2 {[%emt 0:00:00]} b6 {[%emt 0:00:00]} 8. cxd5 {[%emt 0:00:00]} exd5 {[%emt 0:00:00]} 9. Bd3 {[%emt 0:00:00]} Re8 {[%emt 0:01:23]} 10. O-O {[%emt 0:01:08]} Bb7 {[%emt 0:04:01]} 11. Bd2 {[%emt 0:07:46]} Bf8 {[%emt 0:02:14]} 12. a3 {[%emt 0:00:31]} Ne7 {[%emt 0:04:11]} 13. Ne5 {[%emt 0:09:01]} Ng6 {[%emt 0:06:14]} 14. f4 {[%emt 0:07:53]} c5 {[%emt 0:06:10]} 15. Rae1 {[%emt 0:20:21]} Rc8 {[%emt 0:05:43]} 16. Bf5 {[%emt 0:03:30]} Ra8 {[%emt 0:09:43]} 17. Kh1 {[%emt 0:15:34]} Ne7 $11 {[%emt 0:05:37]} 18. g4 {[%emt 0:09:42]} Nxf5 {[%emt 0:02:10]} 19. Qxf5 {[%emt 0:00:05]} Qc8 {[%emt 0:02:29]} 20. Qxc8 {[%emt 0:03:15]} Raxc8 {[%emt 0:00:42]} 21. Rc1 {[%emt 0:01:21]} 1/2-1/2

[Event "GER-ch Youth-ODJM 2022 A"]
[Site "Willingen"]
[Date "2022.06.08"]
[Round "6.1"]
[White "Stelmaszyk, Nico"]
[Black "Wensing, Maximilian"]
[Result "1/2-1/2"]
[ECO "B22"]
[WhiteElo "2302"]
[BlackElo "2063"]
[Annotator "TA"]
[PlyCount "102"]
[EventDate "2022.06.05"]
[EventType "swiss"]
[EventRounds "9"]
[EventCountry "GER"]
[SourceTitle "playchess.com"]
[Source "ChessBase"]
[SourceQuality "1"]
[TimeControl "40/4500+30:900+30"]

{[%evp 13,102,4,5,7,12,2,10,1,13,0,14,-15,0,-4,-5,-10,-7,-15,0,-22,-12,-50,-16,-32,-31,-26,-25,-37,0,0,0,-8,-8,-8,0,0,0,0,0,0,0,0,14,0,0,0,0,0,0,0,0,0,0,0,0,0,0,0,7,7,7,0,0,5,0,0,0,-29,-25,-27,-22,-29,0,0,0,-133,-139,-120,-113,-121,-110,-93,-31,-30,-11,-91,-25,-117,-91,-89,-90]} 1. e4 {[%emt 0:00:00][%cal Be2e4,Be4e5][%mdl 32]} c5 {[%emt 0:00:00]} 2. c3 {[%emt 0:00:00]} Nf6 {[%emt 0:00:00]} 3. e5 {[%emt 0:00:00]} Nd5 {[%emt 0:00:00]} 4. Bc4 {[%emt 0:00:00]} Nb6 {[%emt 0:00:00]} 5. Bb3 {[%emt 0:00:00]} Nc6 {[%emt 0:00:00][%cal Bb8c6,Bc6b4,Bb4c2][%mdl 32]} 6. d4 {[%emt 0:00:00]} cxd4 {[%emt 0:00:00]} 7. cxd4 {[%emt 0:00:00]} d5 {[%emt 0:00:00]} 8. Bc2 $1 {[%emt 0:00:00][%mdl 4] outshines the older 8.Nc3. B22: Sicilian: 2 c3.} Nb4 {[%emt 0:00:00][%cal Oc8g4]} 9. Nc3 {[%emt 0:00:00]} Nxc2+ {[%emt 0:00:00]} (9... Bg4 {with more complications.} 10. Nge2 e6 11. Bb1 Bh5) 10. Qxc2 {[%emt 0:00:00] [#] The position is equal.} a6 $146 {[%emt 0:00:00]} ({Predecessor:} 10... Bd7 11. Nge2 e6 12. Qd3 Rc8 13. O-O Qh4 14. a4 a6 15. b3 Be7 16. Ba3 Bxa3 17. Rxa3 {1-0 (41) Mamedyarov,S (2767)-Vitiugov,N (2726) Chess.com INT 2022}) 11. f4 {[%emt 0:00:00]} g6 {[%emt 0:02:03]} 12. h3 {[%emt 0:00:00]} h5 {[%emt 0:02:25]} 13. Nf3 {[%emt 0:00:00]} Bf5 {[%emt 0:01:46]} 14. Qe2 {[%emt 0:00:00]} e6 {[%emt 0:02:26]} 15. O-O {[%emt 0:03:58]} Rc8 {[%emt 0:02:30]} 16. Be3 {[%emt 0:04:15]} Be7 {[%emt 0:08:13]} 17. Ng5 {[%emt 0:20:24]} h4 {[%emt 0:11:49]} 18. Rac1 {[%emt 0:11:19]} Kf8 {[%emt 0:02:16]} 19. Nf3 {[%emt 0:05:03]} Kg7 {[%emt 0:03:22]} 20. Bf2 {[%emt 0:00:46]} Qd7 {[%emt 0:04:39]} 21. b3 {[%emt 0:03:47]} Rc6 {[%emt 0:05:27]} 22. Qe3 {[%emt 0:05:55]} Qc7 {[%emt 0:04:10] Hoping for ...Ba3.} 23. Ne2 {[%emt 0:01:02]} Nd7 {[%emt 0:03:32]} 24. Rxc6 {[%emt 0:12:13]} Qxc6 {[%emt 0:00:04]} 25. Rc1 {[%emt 0:01:13]} Qb6 {[%emt 0:04:16]} 26. Nc3 {[%emt 0:01:41]} Ba3 {[%emt 0:04:10]} 27. Rf1 {[%emt 0:00:41]} Qd8 {[%emt 0:00:08]} 28. Na4 {[%emt 0:05:41]} Be7 {[%emt 0:04:21]} 29. Rc1 {[%emt 0:01:03]} Ba3 {[%emt 0:00:13]} 30. Rf1 {[%emt 0:00:04]} Be7 {[%emt 0:00:14]} 31. Qc3 {[%emt 0:00:24]} Be4 {[%emt 0:04:17]} 32. Nd2 {[%emt 0:00:31]} Bf5 {[%emt 0:00:00]} 33. Nf3 {[%emt 0:00:07]} Be4 {[%emt 0:00:06]} 34. Nd2 {[%emt 0:00:03]} Bf5 $1 {[%emt 0:00:03]} 35. Nc5 {[%emt 0:04:01]} Nxc5 {[%emt 0:01:11]} 36. dxc5 {[%emt 0:00:05]} Qd7 {[%emt 0:02:43]} 37. Nf3 {[%emt 0:01:59]} Be4 {[%emt 0:00:23]} 38. Nd4 {[%emt 0:00:30]} Rc8 {[%emt 0:05:47]} 39. b4 {[%emt 0:01:06]} Qa4 {[%emt 0:00:04]} 40. Qb3 {[%emt 0:04:32]} Qxb3 {[%emt 0:01:45]} 41. Nxb3 {[%emt 0:15:14]} g5 {[%emt 0:18:21]} 42. Be3 {[%emt 0:02:39]} gxf4 {[%emt 0:00:00]} (42... Bd3 $5 {[%cal Rd3f1]} 43. Rf3 gxf4 $15) 43. Rxf4 {[%emt 0:00:00]} f5 {[%emt 0:00:00]} 44. Na5 {[%emt 0:00:00] [#]} (44. exf6+ $11 Bxf6 45. Na5) 44... d4 $1 $17 {[%emt 0:00:00]} 45. Bxd4 {[%emt 0:00:00][%cal Of4e4] [#]} Rd8 $1 {[%emt 0:00:00]} 46. Be3 {[%emt 0:00:00]} Rd3 {[%emt 0:00:00][%mdl 1024] Black has strong compensation.} 47. Kf2 {[%emt 0:00:00][%cal Of4e4]} Bd5 {[%emt 0:00:00]} (47... Ra3 $17 48. Rxe4 Rxa2+ 49. Ke1 fxe4 50. Nxb7 Rc2) 48. Rd4 $15 {[%emt 0:00:00]} Ra3 {[%emt 0:00:00]} 49. Rd2 {[%emt 0:00:00]} (49. Nxb7 $11 Rxa2+ 50. Ke1) 49... Ra4 {[%emt 0:00:00]} (49... Kg6 $17) 50. Rb2 {[%emt 0:00:00]} (50. a3 $1 $11 {remains equal.} f4 51. Bxf4) 50... Bd8 {[%emt 0:00:00] And now ...Bc7 would win.} 51. Bd2 {[%emt 0:00:00]} Bxa5 {[%emt 0:00:00] Weighted Error Value: White=0.17 (very precise) /Black=0.10 (very precise)} 1/2-1/2

[Event "GER-ch Youth-ODJM 2022 A"]
[Site "Willingen"]
[Date "2022.06.08"]
[Round "6.2"]
[White "Meiwes, Thore"]
[Black "Kardoeus, David"]
[Result "1-0"]
[ECO "A45"]
[WhiteElo "2079"]
[BlackElo "2142"]
[Annotator "TA"]
[PlyCount "121"]
[EventDate "2022.06.05"]
[EventType "swiss"]
[EventRounds "9"]
[EventCountry "GER"]
[SourceTitle "playchess.com"]
[Source "ChessBase"]
[SourceQuality "1"]
[TimeControl "40/4500+30:900+30"]

{[%evp 11,121,-1,4,14,19,9,14,6,3,0,0,6,13,24,25,12,32,39,46,33,40,41,45,35,35,9,27,0,0,-54,8,7,106,123,109,128,127,103,121,-104,44,43,67,66,129,56,265,277,322,324,309,324,948,475,463,435,1117,1112,1093,1071,1677,1568,1012,621,1931,588,1877,669,2678,456,484,458,483,471,475,461,440,429,979,802,709,709,685,648,994,945,922,781,1798,1706,5189,6565,29976,29978,29978,29979,29971,29976,29976,29976,29971,29973,29978,29979,29979,29980,29983,29977,29988,29988,29988,29989]} 1. d4 {[%emt 0:00:00]} Nf6 {[%emt 0:00:00]} 2. Bf4 {[%emt 0:00:00]} d5 {[%emt 0:00:00]} 3. e3 {[%emt 0:00:00]} c5 {[%emt 0:00:00]} 4. c3 {[%emt 0:00:00]} Nc6 {[%emt 0:00:00]} 5. Nd2 {[%emt 0:00:00]} e6 {[%emt 0:00:00]} 6. Ngf3 {[%emt 0:00:00]} cxd4 {[%emt 0:00:00] Nowadays more popular than 6...Bd6.} 7. exd4 {[%emt 0:00:00] D02: 1 d4 d5 2 Nf3 sidelines, including 2...Nf6 3 g3 and 2...Nf6 3 Bf4.} Nh5 {[%emt 0:00:00][%cal Bf6h5,Bh5g7,Bg7f5][%mdl 32]} 8. Be3 {[%emt 0:00:00]} Bd6 {[%emt 0:00:00]} 9. Ne5 {[%emt 0:00:00] The position is equal.} g6 {[%emt 0:00:00]} 10. Nd3 {[%emt 0:00:00]} O-O {[%emt 0:00:00]} 11. g3 {[%emt 0:00:00]} f6 {[%emt 0:00:00]} 12. Bg2 {[%emt 0:00:00]} Ng7 {[%emt 0:02:51]} 13. O-O {[%emt 0:00:00]} Nf5 {[%emt 0:01:18]} 14. Bf4 {[%emt 0:00:00] [#]} b6 $146 {[%emt 0:03:20]} ({Predecessor:} 14... Be7 15. Nb3 Qe8 16. Re1 Qf7 17. a4 a5 18. h3 b6 19. Bf1 Bd7 20. g4 Nd6 {0-1 (62) Tristan,L (2535)-Darini,P (2432) Chess.com INT 2020}) 15. Re1 {[%emt 0:00:00]} Bxf4 {[%emt 0:14:06]} 16. Nxf4 {[%emt 0:00:00]} Qd6 {[%emt 0:01:18]} 17. Rc1 {[%emt 0:00:00]} Bd7 {[%emt 0:03:21]} 18. Nb3 {[%emt 0:00:00]} Rac8 {[%emt 0:15:49]} 19. c4 {[%emt 0:06:13]} dxc4 $1 {[%emt 0:04:34]} 20. d5 {[%emt 0:04:33]} (20. Rxc4 $11 Nce7 21. Nd2) 20... Nce7 {[%emt 0:06:30]} (20... Nb4 $1 $15 21. dxe6 Qxd1 22. Rcxd1 Ba4) 21. Nd2 $1 $11 {[%emt 0:10:28]} (21. dxe6 Qxd1 22. Rcxd1 Ba4 $17) 21... e5 {[%emt 0:03:04]} (21... exd5 $11 {keeps the balance.} 22. Nxd5 (22. Nxc4 Rxc4 23. Rxc4 dxc4 $11) 22... Nxd5 23. Nxc4 Qc5) 22. Ne4 $16 {[%emt 0:07:46][%mdl 1024] White has strong compensation.} Qb8 {[%emt 0:06:27]} 23. d6 {[%emt 0:00:45]} Nc6 {[%emt 0:00:17]} 24. Nd5 $36 {[%emt 0:00:39][%mdl 2048] Black is under strong pressure.} Kg7 {[%emt 0:01:18]} 25. Ne7 $2 {[%emt 0:07:20] White is more active.} (25. Rxc4 $16 {Threatens to win with Ndxf6.} Ncd4 26. Rc7 Rxc7 27. dxc7) 25... Ncd4 {[%emt 0:02:08]} 26. Nxc8 {[%emt 0:01:17]} Rxc8 {[%emt 0:01:17]} 27. f4 {[%emt 0:08:10][%cal Bf2f4,Bf4e5][%mdl 32]} b5 {[%emt 0:08:55]} ({Better is} 27... h5 $1 $14) 28. Nxf6 {[%emt 0:07:44]} (28. g4 $1 $16 {[%cal Rg4f5]} Nh4 {[#]} 29. Nxf6 $1 {[%mdl 512]} Nxg2 30. Rxe5 $1 (30. Nxd7 Qa8 $11) (30. Kxg2 Bc6+ 31. Kf1 Qxd6 $16) 30... Qxd6 31. Ne4) 28... Kxf6 {[%emt 0:04:49] Black cannot hold the game after this.} (28... exf4 $1 $14 29. Nxd7 Qxd6) 29. fxe5+ $18 {[%emt 0:00:03]} (29. Qg4 $2 e4 30. Bxe4 Qxd6 31. Bxf5 Bxf5 32. Qh4+ Kg7 33. Qe7+ (33. Re7+ $2 Kf8 $19) 33... Qxe7 34. Rxe7+ Kf6 $19) 29... Ke6 {[%emt 0:06:17] Strongly threatening ...Qb6.} 30. g4 {[%emt 0:00:28] Really sharp!} Qb6 {[%emt 0:01:17]} 31. gxf5+ {[%emt 0:00:23]} gxf5 $2 {[%emt 0:01:00]} (31... Nxf5+ 32. Kh1 Bc6) 32. Kf1 {[%emt 0:02:11]} Rg8 {[%emt 0:00:55]} 33. Rc3 {[%emt 0:03:20] aiming for Rg3.} ({Not} 33. Qh5 Bc6 34. Bh3 (34. Qxh7 {gets mated.} Bxg2+ 35. Kf2 Nc2+ 36. Ke2 Qe3+ 37. Kd1 Qd3#) 34... Qc5 $18) 33... Rg4 {[%emt 0:00:09]} (33... b4 $142) 34. Qd2 {[%emt 0:01:28]} Bc6 {[%emt 0:00:18]} 35. Rg3 {[%emt 0:02:32]} ({Less strong is} 35. Qh6+ Rg6 36. Qxh7 Bxg2+ 37. Kf2 Rg4 38. Qe7+ Kd5 $14) 35... Rxg3 {[%emt 0:01:07]} 36. hxg3 {[%emt 0:00:10] Qh6+ would kill now.} Bxg2+ {[%emt 0:00:31]} 37. Qxg2 {[%emt 0:00:24][%mdl 4096] Endgame KQR-KQN} Nc6 {[%emt 0:00:30]} 38. Qe2 {[%emt 0:01:16]} (38. Qd2 $142 {And now Qh6+ would win.} f4 39. Qxf4) 38... Qb7 {[%emt 0:00:27]} 39. Qf3 {[%emt 0:01:33]} (39. Qh5 $142) 39... Qb6 {[%emt 0:00:32]} 40. Qe3 {[%emt 0:00:45]} (40. Qf4 $142 {Hoping for Qh6+.} Qd4 41. Qh6+ Kd5 42. e6) 40... Qxe3 {[%emt 0:00:33]} 41. Rxe3 {[%emt 0:15:06] KR-KN} b4 {[%emt 0:00:00]} 42. Ke2 {[%emt 0:00:00]} a5 {[%emt 0:00:00]} 43. Kf2 {[%emt 0:00:00]} Nd4 {[%emt 0:03:46]} 44. Re1 {[%emt 0:00:00] Black must now prevent Rh1.} a4 {[%emt 0:05:51]} (44... Nc6 $142 45. Kf3 a4) 45. Rc1 {[%emt 0:00:00]} Nc6 {[%emt 0:03:49]} 46. Rxc4 {[%emt 0:00:00]} Nxe5 {[%emt 0:00:45]} 47. Rd4 {[%emt 0:00:00]} Kd7 {[%emt 0:00:14]} 48. Ke3 {[%emt 0:00:00]} Nc6 {[%emt 0:00:07]} 49. Rd1 {[%emt 0:00:00]} Ne5 {[%emt 0:00:07]} 50. Kf4 {[%emt 0:00:00]} Nc4 {[%emt 0:00:40]} 51. b3 {[%emt 0:00:00]} axb3 {[%emt 0:00:11]} 52. axb3 {[%emt 0:00:00] White mates.} Na5 {[%emt 0:00:22]} 53. Rd3 {[%emt 0:00:00]} Nb7 {[%emt 0:00:07]} 54. Kxf5 {[%emt 0:00:00]} Nc5 {[%emt 0:00:06]} 55. Rd4 {[%emt 0:00:00]} Nxb3 {[%emt 0:00:26]} 56. Rxb4 {[%emt 0:00:00]} Nc5 {[%emt 0:00:17]} 57. Rd4 {[%emt 0:00:00]} Ne6 {[%emt 0:00:21]} 58. Rd1 {[%emt 0:00:00]} Ng7+ {[%emt 0:00:08]} 59. Kg5 {[%emt 0:00:00]} Ke8 {[%emt 0:02:52]} 60. d7+ {[%emt 0:00:00]} Kd8 {[%emt 0:00:02]} 61. Rd6 {[%emt 0:00:00] Weighted Error Value: White=0.66/Black=0.40} 1-0

[Event "GER-ch Youth-ODJM 2022 A"]
[Site "Willingen"]
[Date "2022.06.08"]
[Round "6.4"]
[White "Schöne, Finn"]
[Black "Menne, Lukas"]
[Result "1-0"]
[ECO "D00"]
[WhiteElo "1110"]
[BlackElo "1150"]
[Annotator "NA RC COMBH"]
[PlyCount "131"]
[EventDate "2022.06.05"]
[EventType "swiss"]
[EventRounds "9"]
[EventCountry "GER"]
[SourceTitle "playchess.com"]
[Source "ChessBase"]
[SourceQuality "1"]
[TimeControl "40/4500+30:900+30"]

1. d4 {[%emt 0:00:00]} d5 {[%emt 0:00:00]} 2. Bf4 {[%emt 0:00:00]} Nf6 {[%emt 0:00:00]} 3. e3 {[%emt 0:00:00]} Bf5 {[%emt 0:00:00]} 4. Nc3 {[%emt 0:00:00]} c6 {[%emt 0:00:00]} 5. f3 {[%emt 0:00:00]} e6 {[%emt 0:00:00]} 6. g4 {[%emt 0:00:00]} Bg6 {[%emt 0:00:00]} 7. h4 {[%emt 0:00:00]} h5 {[%emt 0:00:00]} 8. g5 {[%emt 0:00:00]} Nfd7 {[%emt 0:00:00]} 9. Bd3 {[%emt 0:00:00]} Bxd3 {[%emt 0:00:00]} 10. Qxd3 {[%emt 0:00:00]} g6 {[%emt 0:00:00]} 11. e4 {[%emt 0:00:00]} Qb6 {[%emt 0:02:21]} 12. Rb1 {[%emt 0:00:17]} Bg7 {[%emt 0:02:12]} 13. Nge2 {[%emt 0:04:00]} O-O {[%emt 0:04:32]} 14. Bd6 {[%emt 0:03:02]} Re8 {[%emt 0:01:21]} 15. e5 {[%emt 0:00:37]} c5 {[%emt 0:02:01]} 16. f4 {[%emt 0:02:39]} c4 {[%emt 0:03:23]} 17. Qe3 {[%emt 0:02:03]} Nc6 {[%emt 0:02:39]} 18. a3 {[%emt 0:03:16]} Ne7 {[%emt 0:01:19]} 19. Ng3 {[%emt 0:02:50]} Nc8 {[%emt 0:00:49]} 20. Bb4 {[%emt 0:01:12]} a5 {[%emt 0:02:09]} 21. Bc5 {[%emt 0:02:18]} Qc6 {[%emt 0:00:54]} 22. O-O {[%emt 0:02:23]} b6 {[%emt 0:00:33]} 23. Bd6 {[%emt 0:00:35]} Nxd6 {[%emt 0:00:50]} 24. exd6 {[%emt 0:00:05]} Qxd6 {[%emt 0:01:02]} 25. Nb5 {[%emt 0:00:50]} Qc6 {[%emt 0:01:32]} 26. a4 {[%emt 0:00:23]} Nb8 {[%emt 0:02:00]} 27. Rfe1 {[%emt 0:00:40]} Na6 {[%emt 0:00:52]} 28. c3 {[%emt 0:00:49]} Nc7 {[%emt 0:00:55]} 29. Nxc7 {[%emt 0:00:37]} Qxc7 {[%emt 0:00:11]} 30. Kg2 {[%emt 0:00:48]} Qc6 {[%emt 0:05:02]} 31. Ra1 {[%emt 0:01:17]} b5 {[%emt 0:04:49]} 32. axb5 {[%emt 0:01:52]} Qxb5 {[%emt 0:00:13]} 33. Qe2 {[%emt 0:00:04]} Kf8 {[%emt 0:03:08]} 34. Nf1 {[%emt 0:01:18]} a4 {[%emt 0:03:21]} 35. Ne3 {[%emt 0:01:02]} Rab8 {[%emt 0:14:41]} 36. Kf3 {[%emt 0:05:22]} Qxb2 {[%emt 0:02:30]} 37. Qxb2 {[%emt 0:00:12]} Rxb2 {[%emt 0:00:08]} 38. Rxa4 {[%emt 0:00:09]} Kg8 {[%emt 0:01:36]} 39. Nxd5 {[%emt 0:00:58]} Rd8 {[%emt 0:07:01]} 40. Ne3 {[%emt 0:00:52]} Bxd4 {[%emt 0:05:28]} 41. cxd4 {[%emt 0:15:49]} Rxd4 {[%emt 0:15:08]} 42. Rxc4 {[%emt 0:00:24]} Rxc4 {[%emt 0:00:44]} 43. Nxc4 {[%emt 0:00:02]} Rh2 {[%emt 0:03:34]} 44. Ne3 {[%emt 0:01:19]} Ra2 {[%emt 0:03:51]} 45. Nc4 {[%emt 0:00:45]} Ra6 {[%emt 0:00:51]} 46. Rd1 {[%emt 0:00:40]} Rc6 {[%emt 0:00:33]} 47. Ne5 {[%emt 0:00:15]} Rc7 {[%emt 0:01:03]} 48. Rd7 {[%emt 0:01:00]} Rxd7 {[%emt 0:00:36]} 49. Nxd7 {[%emt 0:00:01]} Kg7 {[%emt 0:01:01]} 50. Ke4 {[%emt 0:00:09]} Kg8 {[%emt 0:01:37]} 51. Kd4 {[%emt 0:00:47]} Kh7 {[%emt 0:01:23]} 52. Ke5 {[%emt 0:00:06]} Kg7 {[%emt 0:00:51]} 53. Kd6 {[%emt 0:00:09]} f5 {[%emt 0:04:10]} 54. Kxe6 {[%emt 0:01:24]} Kg8 {[%emt 0:00:15]} 55. Kf6 {[%emt 0:01:37]} Kh7 {[%emt 0:00:09]} 56. Nf8+ {[%emt 0:00:02]} Kg8 {[%emt 0:00:29]} 57. Kxg6 {[%emt 0:00:10]} Kh8 {[%emt 0:00:33]} 58. Kxf5 Kg7 {[%emt 0:00:09]} 59. Ne6+ {[%emt 0:00:21]} Kf7 {[%emt 0:00:14]} 60. g6+ {[%emt 0:00:03]} Kg8 {[%emt 0:00:00]} 61. Kg5 {[%emt 0:00:52]} Kh8 {[%emt 0:00:04]} 62. f5 {[%emt 0:00:38]} Kg8 {[%emt 0:00:12]} 63. f6 {[%emt 0:00:05]} Kh8 {[%emt 0:00:07]} 64. Kh6 {[%emt 0:00:22]} Kg8 {[%emt 0:00:12]} 65. f7+ {[%emt 0:00:04]} Kh8 {[%emt 0:00:42]} 66. g7# {[%emt 0:00:07]} 1-0

[Event "GER-ch Youth-ODJM 2022 A"]
[Site "Willingen"]
[Date "2022.06.08"]
[Round "6.5"]
[White "Schmitt, Daniel"]
[Black "Nied, Pascal"]
[Result "1/2-1/2"]
[ECO "A48"]
[WhiteElo "2128"]
[BlackElo "2030"]
[Annotator "TA"]
[PlyCount "42"]
[EventDate "2022.06.05"]
[EventType "swiss"]
[EventRounds "9"]
[EventCountry "GER"]
[SourceTitle "playchess.com"]
[Source "ChessBase"]
[SourceQuality "1"]
[TimeControl "40/4500+30:900+30"]

{[%evp 18,42,25,16,28,13,21,22,23,23,17,14,18,18,17,13,14,12,16,5,27,12,14,19,20,20,30]} 1. d4 {[%emt 0:00:00]} Nf6 {[%emt 0:00:00]} 2. Nf3 {[%emt 0:00:00]} g6 {[%emt 0:00:00]} 3. Bg5 {[%emt 0:00:00]} Bg7 {[%emt 0:00:00]} 4. Nbd2 {[%emt 0:00:00]} c5 {[%emt 0:00:00]} 5. dxc5 {[%emt 0:00:00]} Qa5 {[%emt 0:00:00]} 6. c3 {[%emt 0:00:00]} Qxc5 {[%emt 0:00:00]} 7. Bxf6 {[%emt 0:00:00]} Bxf6 {[%emt 0:00:00]} 8. Ne4 {[%emt 0:00:00]} Qb6 {[%emt 0:00:00]} 9. Nxf6+ {[%emt 0:00:00]} Qxf6 {[%emt 0:00:00]} 10. Qd4 {[%emt 0:00:00]} Qxd4 {[%emt 0:00:00] A48: 1 d4 Nf6 2 Nf3 g6: Torre, London and Colle Systems.} 11. Nxd4 {[%emt 0:00:00]} Nc6 {[%emt 0:00:00]} 12. e3 {[%emt 0:00:00]} Nxd4 {[%emt 0:00:00]} 13. cxd4 {[%emt 0:00:00]} b6 {[%emt 0:00:00]} 14. Rc1 {[%emt 0:00:00]} Bb7 {[%emt 0:00:00]} 15. f3 {[%emt 0:00:05]} e6 {[%emt 0:01:18]} 16. Bb5 {[%emt 0:01:14]} a6 {[%emt 0:00:48]} 17. Bd3 {[%emt 0:01:52]} Ke7 {[%emt 0:01:09]} 18. Kd2 {[%emt 0:00:21] [#]} Rhc8 $146 {[%emt 0:00:41]} ({Predecessor:} 18... Rac8 19. a3 d6 20. Rxc8 Rxc8 21. Rc1 Rxc1 22. Kxc1 Kf6 23. Kd2 {½-½ (23) Jones,I (2285)-Gillen,A Debrecen 1992}) 19. a3 {[%emt 0:00:33]} d6 {[%emt 0:01:05] The position is equal.} 20. e4 {[%emt 0:01:04]} Rxc1 {[%emt 0:00:59]} 21. Rxc1 {[%emt 0:00:07] [#] Hoping for Rc7+.} Rc8 {[%emt 0:00:47] Prevents Rc7+. An uneventful encounter.  Weighted Error Value: White=0.05 (flawless) /Black=0.03 (flawless)} 1/2-1/2

[Event "GER-ch Youth-ODJM 2022 A"]
[Site "Willingen"]
[Date "2022.06.08"]
[Round "6.6"]
[White "Löffelholz, Simon"]
[Black "Reger, Christoph"]
[Result "1/2-1/2"]
[ECO "B01"]
[WhiteElo "1044"]
[BlackElo "1056"]
[Annotator "NA RC COMBH"]
[PlyCount "78"]
[EventDate "2022.06.05"]
[EventType "swiss"]
[EventRounds "9"]
[EventCountry "GER"]
[SourceTitle "playchess.com"]
[Source "ChessBase"]
[SourceQuality "1"]
[TimeControl "40/4500+30:900+30"]

1. e4 {[%emt 0:00:00]} d5 {[%emt 0:00:00]} 2. exd5 {[%emt 0:00:00]} Qxd5 {[%emt 0:00:00]} 3. Nc3 {[%emt 0:00:00]} Qa5 {[%emt 0:00:00]} 4. d4 {[%emt 0:00:00]} c6 {[%emt 0:00:00]} 5. Bc4 {[%emt 0:00:00]} Bf5 {[%emt 0:00:00]} 6. Qe2 {[%emt 0:00:00]} e6 {[%emt 0:00:00]} 7. Bd2 {[%emt 0:00:00]} Nd7 {[%emt 0:00:00]} 8. O-O-O {[%emt 0:00:00]} Ngf6 {[%emt 0:00:00]} 9. Nf3 {[%emt 0:00:00]} Qc7 {[%emt 0:00:00]} 10. h3 {[%emt 0:00:00]} Bd6 {[%emt 0:00:00]} 11. g4 {[%emt 0:00:00]} Bg6 {[%emt 0:00:00]} 12. Nh4 {[%emt 0:09:16]} O-O-O {[%emt 0:02:23]} 13. Nxg6 {[%emt 0:02:27]} hxg6 {[%emt 0:00:12]} 14. Rdf1 {[%emt 0:09:13]} Nb6 {[%emt 0:09:23]} 15. Bd3 {[%emt 0:06:09]} Bf4 {[%emt 0:00:42]} 16. Be3 {[%emt 0:06:26]} Rxd4 {[%emt 0:01:28]} 17. Kb1 {[%emt 0:01:22]} Rdd8 {[%emt 0:09:34]} 18. Bc5 {[%emt 0:05:24]} Rh7 {[%emt 0:14:20]} 19. Qf3 {[%emt 0:02:48]} Bd6 {[%emt 0:12:40]} 20. Be3 {[%emt 0:04:34]} Nfd5 {[%emt 0:00:43]} 21. Nxd5 {[%emt 0:01:29]} cxd5 {[%emt 0:01:53]} 22. Bxb6 {[%emt 0:01:19]} axb6 {[%emt 0:00:34]} 23. Rc1 {[%emt 0:02:22]} Bf4 {[%emt 0:01:17]} 24. Rcd1 {[%emt 0:01:43]} Rhh8 {[%emt 0:09:07]} 25. Bb5 {[%emt 0:06:28]} Rhf8 {[%emt 0:01:29]} 26. Rd4 {[%emt 0:02:19]} Be5 {[%emt 0:00:49]} 27. Rdd1 {[%emt 0:00:50]} Qc5 {[%emt 0:00:26]} 28. Bd3 {[%emt 0:01:21]} Qb4 {[%emt 0:00:49]} 29. c3 {[%emt 0:01:47]} Bxc3 {[%emt 0:00:18]} 30. Qe2 {[%emt 0:01:36]} Kb8 {[%emt 0:01:28]} 31. b3 {[%emt 0:02:08]} Rc8 {[%emt 0:02:26]} 32. Rc1 {[%emt 0:01:20]} Qa3 {[%emt 0:00:16]} 33. Rc2 {[%emt 0:00:48]} Bf6 {[%emt 0:00:48]} 34. Rd2 {[%emt 0:01:25]} Rc7 {[%emt 0:01:25]} 35. Rc2 {[%emt 0:03:35]} Rxc2 {[%emt 0:01:09]} 36. Qxc2 {[%emt 0:00:11]} Rc8 {[%emt 0:00:12]} 37. Qd2 {[%emt 0:00:28]} Rc3 {[%emt 0:02:22]} 38. g5 {[%emt 0:01:46]} Rxd3 {[%emt 0:00:54]} 39. Qc2 {[%emt 0:01:46]} Bc3 {[%emt 0:01:09]} 1/2-1/2